Cogmind - Beta 13 @@@ ROGUE MODE // 2024.03.14 @ 05:20:11 Player: puppuppit Result: Self-destructed Performance ------------- Evolutions (2) 1000 Regions Visited (4) 800 Robots Destroyed (43) 215 Value Destroyed (642) 642 Prototype IDs (6) 120 Alien Tech Used (0) 0 Bonus (16) 16 TOTAL SCORE: 2793 Bonus ------- High Alert Combat Kills 16 Cogmind --------- Core Integrity 550/550 Matter 300/300 Energy 124/125 System Corruption 0% Temperature Cool (2) Movement Hovering (56) Location -8/Materials Parts ------- > --- POWER (1) -------- Light Ion Engine > --- PROPULSION (4) --- Hover Unit Hover Unit > --- UTILITY (4) ------ Small Storage Unit Makeshift Hacking Suite > --- WEAPON (2) ------- Rocket Launcher > --- INVENTORY (8) ---- Light Ion Engine Hover Unit Medium Matter Pod (100) Medium Matter Pod (100) Subdweller Optics Improved Terrain Scanner Heavy Battle Rifle Enhanced Flamer Peak State ------------ > --- POWER ------------ Heavy Ion Engine > --- PROPULSION ------- Wheel Wheel > --- UTILITY ---------- Small Storage Unit Improved Terrain Scanner > --- WEAPON ----------- EM Pulse Gun Assault Rifle > --- INVENTORY -------- Light Ion Engine Wheel Small Storage Unit Small Laser [Rating: 11] Favorites ----------- Power Light Ion Engine Engine Light Ion Engine Propulsion Hover Unit Wheel Wheel Hover Unit Hover Unit Utility Small Storage Unit Device Improved Terrain Scanner Storage Small Storage Unit Processor Salvage Targeting Computer Hackware Makeshift Hacking Suite Weapon EM Pulse Gun Energy Gun EM Pulse Gun Ballistic Gun Light Assault Rifle Launcher Rocket Launcher Build | -11 -10 -10 -10 -8 ------- Run | Yrd Mat Min Sub Mat Slots Evolved 4 | . . . . 4 Power . | . . . . . Propulsion 2 | . . . . 2 Utility 2 | . . . . 2 Weapon . | . . . . . Parts Attached 33 | 8 20 2 3 . Power 12 | 1 10 . 1 . Engine 12 | 1 10 . 1 . Core . | . . . . . Reactor . | . . . . . Propulsion 8 | 2 6 . . . Treads . | . . . . . Leg . | . . . . . Wheel 6 | 2 4 . . . Hover 2 | . 2 . . . Flight . | . . . . . Utility 6 | 2 2 1 1 . Device 1 | 1 . . . . Storage 1 | 1 . . . . Processor 3 | . 2 1 . . Hackware 1 | . . . 1 . Protection . | . . . . . Artifact . | . . . . . Weapon 7 | 3 2 1 1 . Energy Gun 2 | 2 . . . . Energy Cannon . | . . . . . Ballistic Gun 4 | 1 2 1 . . Ballistic Cannon . | . . . . . Launcher 1 | . . . 1 . Special Weapon . | . . . . . Impact Weapon . | . . . . . Slashing Weapon . | . . . . . Piercing Weapon . | . . . . . Special Melee Weapon . | . . . . . Unidentified Prototypes 1 | . 1 . . . Parts Lost 1 | . 1 . . . Power . | . . . . . Propulsion 1 | . 1 . . . Utility . | . . . . . Weapon . | . . . . . Highest Loss Streak 1 | . 1 . . . To Critical Strikes . | . . . . . Average Slot Usage (%) 91 | . 99 88 85 54 Engine 13 | . 14 14 14 9 Wheel 8 | . 19 . . . Hover 19 | . 7 28 28 18 Storage 13 | . 14 14 14 9 Processor 12 | . 11 14 12 . Energy Gun 6 | . 14 3 . . Ballistic Gun 11 | . 14 14 4 . Launcher 2 | . . . 9 9 Naked Turns . | . . . . . Heaviest Build 13 | 13 13 12 12 12 Greatest Support 20 | 20 20 12 12 12 Greatest Overweight (x) 1 | . 1 . . . Average Overweight (x) . | . . . . . Largest Inventory Capacity 8 | 8 8 8 8 8 Average Capacity 7 | 7 8 8 8 8 Most Carried 8 | 4 8 8 8 8 Average Carried 7 | 1 7 7 7 8 Final Capacity 8 | 8 8 8 8 8 Final Carried 8 | 4 8 8 8 8 Class Distribution -------------------- 79% | Mutant 20% | Scavenger-Mutant Dominant Class ---------------- Mutant | -10/Materials Mutant | -10/Mines Mutant | -10/Subcaves Mutant | -8/Materials Resources | -11 -10 -10 -10 -8 ----------- Run | Yrd Mat Min Sub Mat Matter Collected 1020 | 304 471 36 209 . Remotely . | . . . . . Salvage Created 1261 | 201 856 117 87 . Parts 88 | 15 63 5 5 . Haulers Intercepted 1 | . 1 . . . Recyclers Shooed 1 | . 1 . . . Parts Field Recycled . | . . . . . Retrieved Matter . | . . . . . Parts Self-Destructed 11 | . . . 11 . Prevented . | . . . . . Kills | -11 -10 -10 -10 -8 ------- Run | Yrd Mat Min Sub Mat Combat Hostiles Destroyed 21 | . 14 . 7 . Guns 14 | . 14 . . . AOE 7 | . . . 7 . Classes Destroyed 10 | 2 7 . 1 . Worker 6 | . 5 1 . . Builder 1 | . 1 . . . Tunneler 5 | 5 . . . . Hauler 1 | . 1 . . . Recycler 5 | 1 3 1 . . Operator 2 | . 2 . . . Watcher 2 | . 2 . . . Swarmer 11 | . 9 . 2 . Grunt 5 | . 5 . . . Subdweller 5 | . . . 5 . Best Kill Streak 6 | 6 6 1 3 . Combat Bots Only 5 | . 5 . 3 . Max Kills in Single Turn 2 | 2 1 1 2 . Gunslinging . | . . . . . Exploded 2 | . . . 2 . Melee . | . . . . . Uniques/NPCs Destroyed . | . . . . . Combat | -11 -10 -10 -10 -8 -------- Run | Yrd Mat Min Sub Mat Hostile Shots Fired 60 | . 45 . 15 . Missed 25 | . 18 . 7 . Damage Taken 410 | . 287 . 123 . Core 85 | . 40 . 45 . Absorbed by Shields . | . . . . . Core Remaining (%) 83 | 100 . . 66 . Volleys Fired 84 | 8 51 9 16 . Largest 2 | 2 2 2 1 . Hottest 60 | 60 60 60 33 . Shots Fired 147 | 16 102 13 16 . Gun 131 | 16 102 13 . . Cannon . | . . . . . Launcher 16 | . . . 16 . Special . | . . . . . Kinetic 68 | 8 51 9 . . Thermal . | . . . . . Explosive 16 | . . . 16 . Electromagnetic 63 | 8 51 4 . . Robot Hit Streak 13 | 9 13 4 6 . Robot Miss Streak 4 | 2 4 2 1 . Penetration Max . | . . . . . Secondary Targets 1 | . 1 . . . Max Gunslinging Chain 1 | . 1 . . . Shots Hit Robots 86 | 9 59 8 10 . Core Hits 54 | 7 35 3 9 . Critical Kills . | . . . . . Critical Parts Destroyed . | . . . . . Critical Strikes . | . . . . . Melee Attacks . | . . . . . Impact . | . . . . . Slashing . | . . . . . Piercing . | . . . . . Sneak Attacks . | . . . . . Combat Hostiles . | . . . . . Follow-up Attacks . | . . . . . Damage Inflicted 2084 | 129 898 124 933 . Guns 1056 | 129 803 124 . . Cannons . | . . . . . Explosions 1028 | . 95 . 933 . Melee . | . . . . . Ramming . | . . . . . Kinetic 457 | 36 325 96 . . Thermal 95 | . 95 . . . Explosive 933 | . . . 933 . Electromagnetic 599 | 93 478 28 . . Impact . | . . . . . Slashing . | . . . . . Piercing . | . . . . . Highest Corruption . | . . . . . Average Corruption . | . . . . . Corruption Purged . | . . . . . Corruption Blocked . | . . . . . Overload Shots . | . . . . . Overflow Damage 46 | . 23 . 23 . Projectiles . | . . . . . Explosions 46 | . 23 . 23 . Melee . | . . . . . Knockbacks . | . . . . . Impact . | . . . . . Kinetic . | . . . . . Secondary . | . . . . . Self-Inflicted Damage 33 | . 31 . 2 . Shots 2 | . 1 . 1 . Rammed . | . . . . . Targets Rammed . | . . . . . Kicked . | . . . . . Crushed . | . . . . . Highest Temperature 70 | . 70 44 . . Average Temperature 26 | . 27 23 . . Received Heat Transfer 96 | . 78 . 18 . Siege Activations . | . . . . . Robots Corrupted . | . . . . . Combat Hostiles . | . . . . . Parts Fried 1 | . 1 . . . Impact Corruptions . | . . . . . Robots Melted . | . . . . . Combat Hostiles . | . . . . . Parts Melted . | . . . . . Heat Transferred . | . . . . . Parts Sabotaged . | . . . . . Parts Stolen . | . . . . . Parts Stripped . | . . . . . Power Chain Reactions 2 | . 2 . . . Alert | -11 -10 -10 -10 -8 ------- Run | Yrd Mat Min Sub Mat Peak Influence 452 | 30 452 140 . 60 Initial 130 | . 19 130 . 60 Average 191 | 11 254 136 . 60 Maximum Alert Level 2 | . 2 . . . Low Security (%) 61 | 100 32 100 . 100 Level 1 31 | . 56 . . . Level 2 6 | . 10 . . . Level 3 . | . . . . . Level 4 . | . . . . . Level 5 . | . . . . . High Security . | . . . . . Max Security . | . . . . . Squads Dispatched 3 | . 3 . . . Investigation 2 | . 2 . . . Extermination . | . . . . . Reinforcement 1 | . 1 . . . Assault . | . . . . . Garrison . | . . . . . Intercept . | . . . . . Searches Triggered . | . . . . . Construction Impeded . | . . . . . Haulers Reinforced . | . . . . . Active Scanning Responses . | . . . . . Cargo Convoy Interrupts . | . . . . . Stealth | -11 -10 -10 -10 -8 --------- Run | Yrd Mat Min Sub Mat Distress Signals . | . . . . . Communications Jammed . | . . . . . Distress Signals . | . . . . . Times Spotted 29 | . 20 . 9 . Peak Tracking Total 6 | . 6 . 2 . Tactical Retreats 2 | . 1 . 1 . Traps | -11 -10 -10 -10 -8 ------- Run | Yrd Mat Min Sub Mat Traps Triggered 1 | . 1 . . . Indirectly . | . . . . . Trap Hack Attempts . | . . . . . Triggered . | . . . . . Disarmed . | . . . . . Reprogrammed . | . . . . . Reused . | . . . . . Traps Extracted . | . . . . . Installed . | . . . . . Triggered . | . . . . . Machines | -11 -10 -10 -10 -8 ---------- Run | Yrd Mat Min Sub Mat Machines Disabled 3 | . 3 . . . Max in Single Turn 1 | . 1 . . . Machines Repaired . | . . . . . Machines Dismantled . | . . . . . Machines Sabotaged . | . . . . . Overloaded Fab Kills . | . . . . . Hacking | -11 -10 -10 -10 -8 --------- Run | Yrd Mat Min Sub Mat Machines Accessed 8 | . 8 . . . Terminals 6 | . 6 . . . Fabricators . | . . . . . Repair Stations 1 | . 1 . . . Recycling Units 1 | . 1 . . . Scanalyzers . | . . . . . Garrison Access . | . . . . . Total Hacks 26 | . 26 . . . Successful 7 | . 7 . . . Failed 18 | . 18 . . . Catastrophic 1 | . 1 . . . Database Lockouts 1 | . 1 . . . Manual 9 | . 9 . . . Terminals 22 | . 22 . . . Fabricators . | . . . . . Repair Stations 3 | . 3 . . . Recycling Units 1 | . 1 . . . Scanalyzers . | . . . . . Garrison Access . | . . . . . Terminal Hacks 6 | . 6 . . . Robot Analysis 3 | . 3 . . . Prototype ID Bank 2 | . 2 . . . Zone Layout 1 | . 1 . . . Fabricator Hacks . | . . . . . Repair Station Hacks . | . . . . . Recycling Unit Hacks 1 | . 1 . . . Retrieve Components 1 | . 1 . . . Scanalyzer . | . . . . . Garrison Access Hacks . | . . . . . Unauthorized Hacks . | . . . . . Terminals . | . . . . . Fabricators . | . . . . . Repair Stations . | . . . . . Recycling Units . | . . . . . Scanalyzers . | . . . . . Garrison Access . | . . . . . Data Cores Recovered . | . . . . . Used . | . . . . . Hacking Detections 7 | . 7 . . . Full Trace Events 2 | . 2 . . . Feedback Events . | . . . . . Feedback Blocked . | . . . . . Robot Schematics Acquired . | . . . . . Robots Built . | . . . . . Authchips . | . . . . . Time . | . . . . . Total Robot Build Rating . | . . . . . Part Schematics Acquired . | . . . . . Parts Built . | . . . . . Authchips . | . . . . . Time . | . . . . . Total Part Build Rating . | . . . . . Parts Repaired . | . . . . . Time . | . . . . . Parts Recycled . | . . . . . Recycled Matter . | . . . . . Retrieved Matter . | . . . . . Retrieved Components 4 | . 4 . . . Parts Scanalyzed . | . . . . . Part Schematics Acquired . | . . . . . Parts Damaged . | . . . . . Bothacking | -11 -10 -10 -10 -8 ------------ Run | Yrd Mat Min Sub Mat Used RIF Installer . | . . . . . Robots Hacked . | . . . . . Non-combat . | . . . . . Combat . | . . . . . Robot Hacks Applied . | . . . . . Relay Couplers Released . | . . . . . Fabnet Peak Effective % . | . . . . . Robots Rewired . | . . . . . Allies Hacked . | . . . . . Hacks Repelled . | . . . . . Allies | -11 -10 -10 -10 -8 -------- Run | Yrd Mat Min Sub Mat Total Allies . | . . . . . Largest Group . | . . . . . Highest-Rated Group . | . . . . . Highest-Rated Ally . | . . . . . Total Orders . | . . . . . Ally Attacks . | . . . . . Total Damage . | . . . . . Kills . | . . . . . Allies Corrupted . | . . . . . Allies Melted . | . . . . . Intel | -11 -10 -10 -10 -8 ------- Run | Yrd Mat Min Sub Mat Robot Analysis Total 3 | . 3 . . . Derelict Logs Recovered 2 | . . 2 . . Drone Launches . | . . . . . Drone Recoveries . | . . . . . Exploration | -11 -10 -10 -10 -8 ------------- Run | Yrd Mat Min Sub Mat Turns Passed 1392 | 87 566 326 397 16 Spaces Moved 1745 | 58 488 533 638 28 Core 1 | 1 . . . . Treads . | . . . . . Legs . | . . . . . Wheels 310 | 57 253 . . . Hover 1434 | . 235 533 638 28 Flight . | . . . . . Fastest Speed 50 | 50 56 56 56 56 Average Speed 60 | 79 68 56 56 56 Slowest Speed 95 | 80 95 56 56 56 Overloaded Moves . | . . . . . Propulsion Burnouts . | . . . . . Robots Hopped . | . . . . . Cave-ins Triggered . | . . . . . Exploration Rate (%) 46 | 3 79 98 48 4 Regions Visited 4 Branch Regions 2 Pre-discovered Areas 1 | . . 1 . . Known Exits Taken 1 | . 1 . . . Unknown Exits Taken 3 | 1 . 1 1 . Scrap Searched 13 | . . 3 10 . Spaces Dug . | . . . . . Terrain Destroyed 96 | . 10 . 86 . Melee . | . . . . . Projectile . | . . . . . AOE 96 | . 10 . 86 . Terrain Rammed . | . . . . . Walls Destroyed . | . . . . . Machines Disabled . | . . . . . Actions | -11 -10 -10 -10 -8 --------- Run | Yrd Mat Min Sub Mat Total 1939 | 78 624 548 661 28 Wait 38 | 1 37 . . . Move 1741 | 57 487 532 637 28 Hop . | . . . . . Pick Up 17 | 4 9 2 2 . Fast Attach 16 | 7 8 . 1 . Attach . | . . . . . Detach 2 | . 1 . 1 . Swap 17 | 1 12 2 2 . Drop 24 | . 19 3 2 . Fire 84 | 8 51 9 16 . Melee . | . . . . . Ram . | . . . . . Kick . | . . . . . Crush . | . . . . . Escape Stasis . | . . . . . Rewire . | . . . . . Trap . | . . . . . Miscellaneous . | . . . . . Route ------- -11/Scrapyard -10/Materials (discovered 4 exits: *Mat x3 / *Min) -10/Mines (discovered 4 exits: *Mat x2 / [*Exi] / [*Sub]) -10/Subcaves -8/Materials (discovered 1 exit: Fac) History --------- Turn | Location | Event 2 | -11/Scrapyard | Met Revision 17 19 | -11/Scrapyard | Discovered new exit (range 15) 88 | -11/Scrapyard | Entered Materials 228 | -10/Materials | Discovered new exit (range 4) 233 | -10/Materials | Identified exit to Materials 324 | -10/Materials | Build established: Mutant 444 | -10/Materials | Discovered new exit (range 14) 527 | -10/Materials | Discovered exit to Materials (range 13) 606 | -10/Materials | Discovered exit to Materials (range 15) 614 | -10/Materials | Central database locked down 653 | -10/Materials | Identified exit to Mines 654 | -10/Materials | Entered Mines 655 | -10/Mines | Learned location of Storage (-7) 700 | -10/Mines | Learned 2 Materials zone layouts 736 | -10/Mines | A weapon hastily lodged in a ceiling crevice suddenly fell to the ground 774 | -10/Mines | Discovered exit to Materials (range 6) 842 | -10/Mines | Learned 2 Materials zone layouts 845 | -10/Mines | Discovered exit to Materials (range 15) 919 | -10/Mines | Received a Rocket Launcher from a helpful Derelict 928 | -10/Mines | Deemed a non-threat by the Exiles lab entrance 929 | -10/Mines | Discovered new exit (range 5) 979 | -10/Mines | Discovered new exit (range 3) 980 | -10/Mines | Entered Subcaves 993 | -10/Subcaves | Shifting Twisted Machinery released Spk. Treads 1309 | -10/Subcaves | Ambushed by Subdwellers from Twisted Machinery 1351 | -10/Subcaves | Discovered new exit (range 8) 1377 | -10/Subcaves | Entered Materials 1377 | -8/Materials | Evolved 4 slots: Propulsion x2, Utility x2 1378 | -8/Materials | Identified exit to Factory 1393 | -8/Materials | Self-destructed Last Messages --------------- 01335_ Found Sub. Monowheel. 01335_ Found 17 Matter. 01336_ Acquired 17 matter. 01337_ Discarded Salvage Targeting Computer. 01337_ Acquired Mak. Hacking Suite. 01339_ Acquired 33 matter. 01341_ Dropped Lgt. Assault Rifle. 01342_ Acquired Sub. Optics. 01343_ Dropped Salvage Targeting Computer. 01344_ The unstable cave ceiling collapses. 01347_ Acquired Enh. Flamer. 01351_ EXIT=FOUND 01353_ The unstable cave ceiling collapses. PARAMETERS=PROPULSION+2,UTILITY+2 LOCATION=UNKNOWN GOAL=ESCAPE Loading 4 Materials zones... 01388_ K-01 Serf collects debris. 01393_ Connecting with Terminal... 01393_ Current location identified: Materials Map ----- +----------------------------------------------------+ | ????????????????????????#####????????????????????? | | ????????????????????????# #????????????????????? | | ????????????????????????# #????????????????????? | | ????????????????????????# #????????????????????? | | ????????????????????????# #????????????????????? | | ????????????????????????# #????????????????????? | | ????????????????????????# #????????????????????? | | ????????????????????????# ########?????????????? | | ????????????????????????# # #?????????????? | | ????????????????????????# # """ #?????????????? | | ????????????????????????# # "R #?????????????? | | ????????????????????????# + """ #?????????????? | | ????????????????????????# # #?????????????? | | ????????????????????????# #] * #?????????????? | | ????????????????????????# ########?????????????? | | ????????????????????????# #????????????????????? | | ????????????????????????# #????????????????????? | | ????????????????????????# #????????????????????? | | ????????????????????????# #????????????????????? | | ????????????????????????# #????????????????????? | | ????????????????????????# #????????????????????? | | ????????????????????????# #????????????????????? | | ????????????????????????# #????????????????????? | | ????????????????????????# #????????????????????? | | ???????????????????????## #????????????????????? | | ???????????????????????#T@ #????????????????????? | | ???????????????????????## #????????????????????? | | ????????????????????????# k #????????????????????? | | ????????????????????????# #????????????????????? | | ???????????????????????? ????????????????????? | | ???????????????????????? ???????????????????? | | ##?????????????????????# T ??????????????????? | | ?????????????????????#! ?????????????????? | | ?????????????????????# ####????????????????? | | ?????????????????????#######???????????????????? | | ???????????????????????????????????????????????? | | ???????????????????????????????????????????????? | | ???????????????????????????????????????????????? | | ???????????????????????????????????????????????? | | ???????????????????????????????????????????????? | | ???????????????????????????????????????????????? | | ???????????????????????????????????????????????? | | ???????????????????????????????????????????????? | | ?? # """ #???????????????????????????????????? | | ?? # """ #??########?????????????????????????? | | ?? ###########??# #?????????????????????????? | | ?? #????????????# #?????????????????????????? | | ?? #????????????# """ #?????????????????????????? | | ?? #????????????# """ #?????????????????????????? | | ?? #????????????# """ #?????????????????????????? | +----------------------------------------------------+ Best States ------------- Heat Dissipation 31 Energy Generation 14 Energy Capacity 280 Matter Stores 300 Matter Capacity 300 Sight Range 16 Terrain Scan Range 16 Terrain Scan Density 10 Evasion (%) 53 Salvage Targeting 1 Offensive Hacking 11 Item Schematics ----------------- None Robot Schematics ------------------ None Fabricated ------------ Nothing Alien Tech Used ----------------- None Achievements -------------- None Challenges ------------ None Game ------ Seed MeleeSpliceMembrane Manual? 0 Play Time 00:19:17 Cumulative 142.7 hours Start 2024.03.14 @ 05:01:42 End 2024.03.14 @ 05:20:11 Sessions 1 Manual Loads 0 Difficulty Rogue Special Mode None Game No. 78 Rogue 78 Adventurer 0 Explorer 0 Win Type - Total 0 Types 0/0/0/0/0/0/0/0/0 Lore% 57 Gallery% 62 Achievement% 53 Wizard Run 0 Options --------- Layout 0 ASCII 0 Keyboard 1 Movement Arrows Keybinds 0 Fullscreen 1 Font 12/Proggy Map View 83x54 Zoom Use 0% Tactical HUD 1 Map Filters NONE Filters NONE Steam 0 RUN: d6c68fa4-9e24-4cf8-a092-2ddd5e3043ba